[Event "Live Chess"]
[Site "Chess.com"]
[Date "2023.05.21"]
[Round "-"]
[White "Alan_Richardson"]
[Black "WelshTiger"]
[Result "0-1"]
[WhiteElo "1694"]
[BlackElo "2356"]
[TimeControl "300"]
[EndTime "23:46:26 PDT"]
[Termination "WelshTiger won on time"]

1. d4 {[%clk 0:04:59.2]} 1... d5 {[%clk 0:04:58.1]} 2. Nf3 {[%clk 0:04:57]} 2...
Nf6 {[%clk 0:04:56.5]} 3. Bf4 {[%clk 0:04:56]} 3... e6 {[%clk 0:04:51.2]} 4. e3
{[%clk 0:04:54.4]} 4... Bd6 {[%clk 0:04:50.3]} 5. Nbd2 {[%clk 0:04:51.1]} 5...
Bxf4 {[%clk 0:04:48.7]} 6. exf4 {[%clk 0:04:49.7]} 6... c5 {[%clk 0:04:47.4]} 7.
c3 {[%clk 0:04:43.4]} 7... cxd4 {[%clk 0:04:46.2]} 8. Nxd4 {[%clk 0:04:41.6]}
8... Nc6 {[%clk 0:04:44.5]} 9. N2f3 {[%clk 0:04:38.2]} 9... Qd6 {[%clk
0:04:41.9]} 10. g3 {[%clk 0:04:36.1]} 10... O-O {[%clk 0:04:38.3]} 11. Bd3
{[%clk 0:04:34.1]} 11... Ne4 {[%clk 0:04:29]} 12. Qe2 {[%clk 0:04:26.3]} 12...
f5 {[%clk 0:04:27.5]} 13. O-O-O {[%clk 0:04:21.9]} 13... Bd7 {[%clk 0:04:25]}
14. h4 {[%clk 0:04:12.4]} 14... Rac8 {[%clk 0:04:22.9]} 15. Kb1 {[%clk
0:04:08.3]} 15... Nxd4 {[%clk 0:04:18.3]} 16. Nxd4 {[%clk 0:04:06.3]} 16... a6
{[%clk 0:04:04.7]} 17. Rdg1 {[%clk 0:04:02.6]} 17... b5 {[%clk 0:04:02.9]} 18.
f3 {[%clk 0:03:54.3]} 18... Nc5 {[%clk 0:03:59.7]} 19. Bc2 {[%clk 0:03:50.4]}
19... Rb8 {[%clk 0:03:56.8]} 20. g4 {[%clk 0:03:36.6]} 20... b4 {[%clk
0:03:45.8]} 21. c4 {[%clk 0:03:23.5]} 21... fxg4 {[%clk 0:03:12.4]} 22. fxg4
{[%clk 0:03:07.1]} 22... Rxf4 {[%clk 0:03:08.4]} 23. Nf3 {[%clk 0:02:39.1]}
23... Rxc4 {[%clk 0:02:34.3]} 24. Ne5 {[%clk 0:02:12.8]} 24... Re4 {[%clk
0:02:20.8]} 25. Bxe4 {[%clk 0:02:08.9]} 25... dxe4 {[%clk 0:02:04.6]} 26. Nxd7
{[%clk 0:01:58.5]} 26... Qxd7 {[%clk 0:02:03.7]} 27. g5 {[%clk 0:01:56.7]} 27...
Qd4 {[%clk 0:01:55]} 28. h5 {[%clk 0:01:53.3]} 28... Nd3 {[%clk 0:01:53.7]} 29.
Rd1 {[%clk 0:01:32.8]} 29... Rf8 {[%clk 0:01:49.1]} 30. Rh2 {[%clk 0:01:26.1]}
30... e5 {[%clk 0:01:45.9]} 31. h6 {[%clk 0:01:15.5]} 31... g6 {[%clk
0:01:42.6]} 32. Rg2 {[%clk 0:00:49.9]} 32... Rf3 {[%clk 0:01:38.5]} 33. Qc2
{[%clk 0:00:36]} 33... Qd5 {[%clk 0:01:20.9]} 34. Qc8+ {[%clk 0:00:29.3]} 34...
Rf8 {[%clk 0:01:19.9]} 35. Qc7 {[%clk 0:00:26.5]} 35... Qf7 {[%clk 0:01:16.6]}
36. Qd6 {[%clk 0:00:18.3]} 36... Qf3 {[%clk 0:01:10]} 37. Qd7 {[%clk 0:00:15.7]}
37... Qf7 {[%clk 0:01:04.8]} 38. Qd6 {[%clk 0:00:11.7]} 38... Nf4 {[%clk
0:00:59.9]} 39. Rgd2 {[%clk 0:00:09.4]} 39... Nd3 {[%clk 0:00:56.3]} 40. Qxa6
{[%clk 0:00:05.3]} 40... Qe7 {[%clk 0:00:47.4]} 41. Qc4+ {[%clk 0:00:02.4]}
41... Kh8 {[%clk 0:00:45.4]} 42. Qxe4 {[%clk 0:00:01.1]} 42... Nc5 {[%clk
0:00:38.4]} 0-1

[Event "Live Chess"]
[Site "Chess.com"]
[Date "2023.05.21"]
[Round "-"]
[White "hturner40"]
[Black "Pandreq"]
[Result "1-0"]
[WhiteElo "1787"]
[BlackElo "1251"]
[TimeControl "300"]
[EndTime "23:46:46 PDT"]
[Termination "hturner40 won by resignation"]

1. Nf3 {[%clk 0:04:56.6]} 1... Nf6 {[%clk 0:04:58.8]} 2. g3 {[%clk 0:04:54.9]}
2... g6 {[%clk 0:04:57.8]} 3. Bg2 {[%clk 0:04:54]} 3... d5 {[%clk 0:04:55.5]} 4.
O-O {[%clk 0:04:53.1]} 4... Bg7 {[%clk 0:04:54.2]} 5. d4 {[%clk 0:04:50.5]} 5...
b6 {[%clk 0:04:43.1]} 6. c4 {[%clk 0:04:47.6]} 6... c6 {[%clk 0:04:35.7]} 7.
cxd5 {[%clk 0:04:34.4]} 7... cxd5 {[%clk 0:04:34.4]} 8. Ne5 {[%clk 0:04:31.8]}
8... O-O {[%clk 0:04:25.7]} 9. Nc3 {[%clk 0:04:30.2]} 9... Bb7 {[%clk
0:04:23.8]} 10. Bg5 {[%clk 0:04:25]} 10... e6 {[%clk 0:04:06.8]} 11. Rc1 {[%clk
0:04:19.2]} 11... Nbd7 {[%clk 0:04:03.1]} 12. Nb5 {[%clk 0:04:12.1]} 12... Rc8
{[%clk 0:03:44.6]} 13. Nd6 {[%clk 0:03:46.8]} 13... Rc7 {[%clk 0:03:25.8]} 14.
Qa4 {[%clk 0:03:28.7]} 14... h6 {[%clk 0:03:01.4]} 15. Bf4 {[%clk 0:02:48.2]}
15... g5 {[%clk 0:02:28.8]} 16. Nexf7 {[%clk 0:02:13.1]} 16... Rxf7 {[%clk
0:02:08.2]} 17. Nxf7 {[%clk 0:02:11.6]} 17... Kxf7 {[%clk 0:02:00.3]} 18. Bxc7
{[%clk 0:02:06.4]} 18... Qe8 {[%clk 0:01:37.5]} 19. Qxa7 {[%clk 0:02:01.3]} 1-0

[Event "Live Chess"]
[Site "Chess.com"]
[Date "2023.05.21"]
[Round "-"]
[White "JoeRoot66"]
[Black "f4nomore"]
[Result "1-0"]
[WhiteElo "1924"]
[BlackElo "1433"]
[TimeControl "300"]
[EndTime "23:47:11 PDT"]
[Termination "JoeRoot66 won by resignation"]

1. e4 {[%clk 0:04:58.5]} 1... g6 {[%clk 0:04:59.9]} 2. d4 {[%clk 0:04:57.6]}
2... Bg7 {[%clk 0:04:59.8]} 3. Bc4 {[%clk 0:04:57.1]} 3... e6 {[%clk 0:04:57.6]}
4. Nf3 {[%clk 0:04:56.3]} 4... Ne7 {[%clk 0:04:55.7]} 5. h4 {[%clk 0:04:49.2]}
5... h5 {[%clk 0:04:53.8]} 6. Bd3 {[%clk 0:04:46.3]} 6... d5 {[%clk 0:04:49.6]}
7. e5 {[%clk 0:04:45.7]} 7... b6 {[%clk 0:04:43.8]} 8. Bg5 {[%clk 0:04:42.4]}
8... O-O {[%clk 0:04:37]} 9. Qd2 {[%clk 0:04:41]} 9... c5 {[%clk 0:04:31.8]} 10.
c3 {[%clk 0:04:39.4]} 10... c4 {[%clk 0:04:29.3]} 11. Bc2 {[%clk 0:04:37.8]}
11... Qe8 {[%clk 0:04:25]} 12. Bf6 {[%clk 0:04:30.9]} 12... Nf5 {[%clk 0:04:19]}
13. Bxf5 {[%clk 0:04:27.9]} 13... exf5 {[%clk 0:04:16.6]} 14. Qg5 {[%clk
0:04:21.9]} 14... Nd7 {[%clk 0:04:04.2]} 15. Bxg7 {[%clk 0:04:20.6]} 15... Kxg7
{[%clk 0:04:01.1]} 16. O-O {[%clk 0:04:18.3]} 16... f6 {[%clk 0:03:56.2]} 17.
exf6+ {[%clk 0:04:09.5]} 17... Nxf6 {[%clk 0:03:52.1]} 18. Re1 {[%clk
0:04:05.3]} 18... Ne4 {[%clk 0:03:50]} 19. Qf4 {[%clk 0:04:01.5]} 19... Qf7
{[%clk 0:03:43.6]} 20. Ne5 {[%clk 0:03:57.1]} 20... Qf6 {[%clk 0:03:35.1]} 21.
f3 {[%clk 0:03:55.7]} 21... Nd6 {[%clk 0:03:12.2]} 22. Nd2 {[%clk 0:03:45.4]}
22... Bb7 {[%clk 0:03:10]} 23. Nd7 {[%clk 0:03:42.6]} 23... Qf7 {[%clk
0:02:33.1]} 24. Qxd6 {[%clk 0:03:32.2]} 24... Rfe8 {[%clk 0:02:25.5]} 25. Re5
{[%clk 0:03:22.7]} 25... Rxe5 {[%clk 0:02:16.2]} 26. Nxe5 {[%clk 0:03:19.8]}
26... Qf6 {[%clk 0:02:01.7]} 27. Qd7+ {[%clk 0:03:15.4]} 27... Kh6 {[%clk
0:01:58]} 28. Nf7+ {[%clk 0:03:12.5]} 28... Kg7 {[%clk 0:01:50]} 29. Ng5+ {[%clk
0:03:09.5]} 29... Kg8 {[%clk 0:01:41.5]} 30. Qxb7 {[%clk 0:03:05.6]} 30... Re8
{[%clk 0:01:37.4]} 31. Qxd5+ {[%clk 0:02:55.7]} 31... Kg7 {[%clk 0:01:33.6]} 32.
Kf2 {[%clk 0:02:50.9]} 32... Re7 {[%clk 0:01:18.8]} 33. Re1 {[%clk 0:02:48.7]}
33... Rxe1 {[%clk 0:01:16.6]} 34. Kxe1 {[%clk 0:02:48]} 1-0

[Event "Live Chess"]
[Site "Chess.com"]
[Date "2023.05.21"]
[Round "-"]
[White "KeithArkell"]
[Black "Shepherds_Pie"]
[Result "1-0"]
[WhiteElo "2555"]
[BlackElo "1923"]
[TimeControl "300"]
[EndTime "23:47:12 PDT"]
[Termination "KeithArkell won by checkmate"]

1. d4 {[%clk 0:04:58.7]} 1... d5 {[%clk 0:04:57.9]} 2. Nf3 {[%clk 0:04:56.6]}
2... Nf6 {[%clk 0:04:56.5]} 3. c4 {[%clk 0:04:55.7]} 3... c5 {[%clk 0:04:53.5]}
4. cxd5 {[%clk 0:04:54.4]} 4... cxd4 {[%clk 0:04:50.6]} 5. Qxd4 {[%clk 0:04:51]}
5... Qxd5 {[%clk 0:04:47]} 6. Nc3 {[%clk 0:04:47.6]} 6... Qxd4 {[%clk
0:04:42.6]} 7. Nxd4 {[%clk 0:04:46.8]} 7... a6 {[%clk 0:04:41]} 8. g3 {[%clk
0:04:45.1]} 8... Nc6 {[%clk 0:04:38.3]} 9. Nxc6 {[%clk 0:04:44.1]} 9... bxc6
{[%clk 0:04:36.2]} 10. Bg2 {[%clk 0:04:43.4]} 10... Bd7 {[%clk 0:04:35.2]} 11.
Be3 {[%clk 0:04:40.9]} 11... e5 {[%clk 0:04:33.3]} 12. O-O {[%clk 0:04:38.8]}
12... Be7 {[%clk 0:04:28.8]} 13. Na4 {[%clk 0:04:37.5]} 13... Rb8 {[%clk
0:04:22.8]} 14. b3 {[%clk 0:04:35.4]} 14... O-O {[%clk 0:04:20.3]} 15. Bc5
{[%clk 0:04:33.2]} 15... Rfe8 {[%clk 0:04:13.9]} 16. Bxe7 {[%clk 0:04:30.6]}
16... Rxe7 {[%clk 0:04:11.1]} 17. Rac1 {[%clk 0:04:29.6]} 17... Nd5 {[%clk
0:04:05.3]} 18. Nc5 {[%clk 0:04:27.7]} 18... Bc8 {[%clk 0:04:02]} 19. Rfd1
{[%clk 0:04:22.6]} 19... Nb4 {[%clk 0:03:55.7]} 20. Rd8+ {[%clk 0:04:19.6]}
20... Re8 {[%clk 0:03:50.8]} 21. Rxe8# {[%clk 0:04:18.7]} 1-0

[Event "Live Chess"]
[Site "Chess.com"]
[Date "2023.05.21"]
[Round "-"]
[White "Conradical12"]
[Black "YrrriKharkiv"]
[Result "0-1"]
[WhiteElo "1579"]
[BlackElo "2045"]
[TimeControl "300"]
[EndTime "23:47:22 PDT"]
[Termination "YrrriKharkiv won by resignation"]

1. e4 {[%clk 0:04:57.1]} 1... e6 {[%clk 0:04:57.6]} 2. Nf3 {[%clk 0:04:55.3]}
2... d5 {[%clk 0:04:57.1]} 3. exd5 {[%clk 0:04:52.5]} 3... exd5 {[%clk
0:04:56.3]} 4. d4 {[%clk 0:04:51.9]} 4... Bd6 {[%clk 0:04:55.5]} 5. c4 {[%clk
0:04:50.6]} 5... c6 {[%clk 0:04:54.2]} 6. Nc3 {[%clk 0:04:49.6]} 6... Ne7 {[%clk
0:04:52.7]} 7. Be3 {[%clk 0:04:42.1]} 7... Nd7 {[%clk 0:04:50.5]} 8. Bd3 {[%clk
0:04:40.2]} 8... O-O {[%clk 0:04:48.6]} 9. Bxh7+ {[%clk 0:04:32.7]} 9... Kxh7
{[%clk 0:04:45.9]} 10. Ng5+ {[%clk 0:04:31.7]} 10... Kg8 {[%clk 0:04:32.2]} 11.
Qh5 {[%clk 0:04:25.4]} 11... Nf6 {[%clk 0:04:30.9]} 12. Qh4 {[%clk 0:04:21.4]}
12... Nf5 {[%clk 0:04:16.7]} 0-1

[Event "Live Chess"]
[Site "Chess.com"]
[Date "2023.05.21"]
[Round "-"]
[White "Driftboard"]
[Black "minenko-1958"]
[Result "1/2-1/2"]
[WhiteElo "772"]
[BlackElo "1446"]
[TimeControl "300"]
[EndTime "23:47:32 PDT"]
[Termination "Game drawn by repetition"]

1. e4 {[%clk 0:04:58.2]} 1... e5 {[%clk 0:04:58.3]} 2. Nf3 {[%clk 0:04:57.1]}
2... Nc6 {[%clk 0:04:54.2]} 3. Nc3 {[%clk 0:04:56.6]} 3... a6 {[%clk 0:04:52.7]}
4. Bc4 {[%clk 0:04:55.6]} 4... Bc5 {[%clk 0:04:50.2]} 5. O-O {[%clk 0:04:55.3]}
5... h6 {[%clk 0:04:47.1]} 6. d3 {[%clk 0:04:54.9]} 6... Nf6 {[%clk 0:04:44.3]}
7. Re1 {[%clk 0:04:54.4]} 7... d6 {[%clk 0:04:41.9]} 8. Be3 {[%clk 0:04:53.8]}
8... Bxe3 {[%clk 0:04:38]} 9. Rxe3 {[%clk 0:04:53.4]} 9... Na5 {[%clk
0:04:30.2]} 10. b3 {[%clk 0:04:47]} 10... Nxc4 {[%clk 0:04:28.6]} 11. bxc4
{[%clk 0:04:46.1]} 11... c6 {[%clk 0:04:27.5]} 12. d4 {[%clk 0:04:43.6]} 12...
exd4 {[%clk 0:04:24.9]} 13. Nxd4 {[%clk 0:04:41.3]} 13... O-O {[%clk 0:04:22.2]}
14. Na4 {[%clk 0:04:38.7]} 14... Re8 {[%clk 0:04:13]} 15. c5 {[%clk 0:04:33.8]}
15... Qa5 {[%clk 0:03:55.2]} 16. Nb6 {[%clk 0:04:23.5]} 16... Rb8 {[%clk
0:03:49.3]} 17. Nxc8 {[%clk 0:04:20.1]} 17... Rbxc8 {[%clk 0:03:44]} 18. cxd6
{[%clk 0:04:19.7]} 18... Rcd8 {[%clk 0:03:41]} 19. e5 {[%clk 0:04:16.9]} 19...
Rxe5 {[%clk 0:03:31.1]} 20. Rxe5 {[%clk 0:04:13.2]} 20... Qxe5 {[%clk
0:03:29.5]} 21. Nf3 {[%clk 0:04:09.4]} 21... Qxd6 {[%clk 0:03:24.1]} 22. Qxd6
{[%clk 0:04:08.9]} 22... Rxd6 {[%clk 0:03:22.8]} 23. Kf1 {[%clk 0:04:05.5]}
23... Ng4 {[%clk 0:03:17.2]} 24. Ke2 {[%clk 0:04:01.6]} 24... Re6+ {[%clk
0:03:12.7]} 25. Kd3 {[%clk 0:03:57.8]} 25... b5 {[%clk 0:03:11.1]} 26. Kd4
{[%clk 0:03:55.7]} 26... Nxf2 {[%clk 0:03:09.6]} 27. Kc5 {[%clk 0:03:53]} 27...
Ng4 {[%clk 0:02:59.5]} 28. Kb6 {[%clk 0:03:50.5]} 28... b4 {[%clk 0:02:49.1]}
29. Kxa6 {[%clk 0:03:48.7]} 29... c5+ {[%clk 0:02:47.6]} 30. Kb5 {[%clk
0:03:46.9]} 30... Ne3 {[%clk 0:02:40.7]} 31. Re1 {[%clk 0:03:32.9]} 31... Nxc2
{[%clk 0:02:35]} 32. Rxe6 {[%clk 0:03:32.2]} 32... fxe6 {[%clk 0:02:33.6]} 33.
Kxc5 {[%clk 0:03:31.8]} 33... g5 {[%clk 0:02:28.5]} 34. Kc4 {[%clk 0:03:27.7]}
34... Kf7 {[%clk 0:02:26.7]} 35. Kd3 {[%clk 0:03:26.3]} 35... Na3 {[%clk
0:02:21.2]} 36. Ne5+ {[%clk 0:03:16.1]} 36... Kf6 {[%clk 0:02:18.7]} 37. Ng4+
{[%clk 0:03:15.1]} 37... Kg6 {[%clk 0:02:16.4]} 38. g3 {[%clk 0:03:14]} 38... h5
{[%clk 0:02:14.9]} 39. Ne5+ {[%clk 0:03:11.3]} 39... Kf5 {[%clk 0:02:13.3]} 40.
Nc6 {[%clk 0:03:08.3]} 40... e5 {[%clk 0:02:00.9]} 41. Nxb4 {[%clk 0:03:06.3]}
41... e4+ {[%clk 0:01:58.9]} 42. Ke3 {[%clk 0:03:05.1]} 42... Nc4+ {[%clk
0:01:55.5]} 43. Kf2 {[%clk 0:03:01.9]} 43... e3+ {[%clk 0:01:50.4]} 44. Kf3
{[%clk 0:02:58]} 44... g4+ {[%clk 0:01:49.2]} 45. Ke2 {[%clk 0:02:53.2]} 45...
Ke4 {[%clk 0:01:46.9]} 46. Nc2 {[%clk 0:02:50.6]} 46... Ne5 {[%clk 0:01:13.7]}
47. a4 {[%clk 0:02:46.9]} 47... Nc4 {[%clk 0:01:10.9]} 48. a5 {[%clk 0:02:13.4]}
48... Nxa5 {[%clk 0:01:08.9]} 49. Nxe3 {[%clk 0:02:11.3]} 49... Nb3 {[%clk
0:01:05.7]} 50. Nf1 {[%clk 0:02:02.8]} 50... Nd4+ {[%clk 0:01:03.2]} 51. Kf2
{[%clk 0:01:58.6]} 51... Nf3 {[%clk 0:01:01.2]} 52. Kg2 {[%clk 0:01:41.1]} 52...
Ne1+ {[%clk 0:00:58.4]} 53. Kf2 {[%clk 0:01:37.8]} 53... Nf3 {[%clk 0:00:55.9]}
54. Kg2 {[%clk 0:01:34.2]} 54... Ne1+ {[%clk 0:00:54.3]} 55. Kh1 {[%clk
0:01:32.4]} 55... Nf3 {[%clk 0:00:52.4]} 56. h3 {[%clk 0:01:22.9]} 56... gxh3
{[%clk 0:00:49.8]} 57. Nh2 {[%clk 0:01:17.6]} 57... Nd2 {[%clk 0:00:39.3]} 58.
g4 {[%clk 0:01:11.6]} 58... hxg4 {[%clk 0:00:31.9]} 59. Nxg4 {[%clk 0:01:10.5]}
59... Kf3 {[%clk 0:00:31.2]} 60. Ne5+ {[%clk 0:01:07.9]} 60... Kg3 {[%clk
0:00:29.7]} 61. Kg1 {[%clk 0:00:59.3]} 61... h2+ {[%clk 0:00:27.5]} 62. Kh1
{[%clk 0:00:56.6]} 62... Ne4 {[%clk 0:00:25.2]} 63. Nd3 {[%clk 0:00:53.7]} 63...
Kh3 {[%clk 0:00:21.9]} 64. Nf4+ {[%clk 0:00:31.5]} 64... Kg3 {[%clk 0:00:20.6]}
65. Ne2+ {[%clk 0:00:30.1]} 65... Kh3 {[%clk 0:00:16]} 66. Nf4+ {[%clk
0:00:26.8]} 66... Kg3 {[%clk 0:00:14.9]} 67. Ne2+ {[%clk 0:00:25.8]} 67... Kh3
{[%clk 0:00:13.6]} 68. Nf4+ {[%clk 0:00:24.4]} 1/2-1/2

[Event "Live Chess"]
[Site "Chess.com"]
[Date "2023.05.21"]
[Round "-"]
[White "Stanbad1"]
[Black "seasidecastle27"]
[Result "1-0"]
[WhiteElo "2402"]
[BlackElo "1776"]
[TimeControl "300"]
[EndTime "23:47:41 PDT"]
[Termination "Stanbad1 won by resignation"]

1. d4 {[%clk 0:04:57.5]} 1... d6 {[%clk 0:04:58.9]} 2. Nc3 {[%clk 0:04:53.4]}
2... Nf6 {[%clk 0:04:49.8]} 3. e4 {[%clk 0:04:51.7]} 3... g6 {[%clk 0:04:42.5]}
4. f3 {[%clk 0:04:47.6]} 4... Bg7 {[%clk 0:04:41.2]} 5. Be3 {[%clk 0:04:45.8]}
5... c6 {[%clk 0:04:39.1]} 6. Qd2 {[%clk 0:04:43.9]} 6... b5 {[%clk 0:04:34.5]}
7. O-O-O {[%clk 0:04:42.2]} 7... b4 {[%clk 0:04:24.8]} 8. Nce2 {[%clk
0:04:40.4]} 8... a5 {[%clk 0:04:22.8]} 9. Bh6 {[%clk 0:04:34.3]} 9... Bxh6
{[%clk 0:04:18.2]} 10. Qxh6 {[%clk 0:04:34.2]} 10... Qb6 {[%clk 0:04:15]} 11.
Nh3 {[%clk 0:04:28.5]} 11... a4 {[%clk 0:04:12]} 12. e5 {[%clk 0:04:23.2]} 12...
dxe5 {[%clk 0:03:50.9]} 13. dxe5 {[%clk 0:04:23.1]} 13... Nd5 {[%clk 0:03:48.8]}
14. Nd4 {[%clk 0:04:09]} 14... b3 {[%clk 0:03:40.1]} 15. axb3 {[%clk 0:04:06.4]}
15... axb3 {[%clk 0:03:36.2]} 16. Nxb3 {[%clk 0:04:06.3]} 16... Be6 {[%clk
0:03:26.6]} 17. Ng5 {[%clk 0:04:02.6]} 17... Qe3+ {[%clk 0:03:16.2]} 18. Kb1
{[%clk 0:04:00.6]} 18... Nd7 {[%clk 0:02:58.3]} 19. Nxf7 {[%clk 0:03:52.7]}
19... Qa7 {[%clk 0:02:47.8]} 20. Nxh8 {[%clk 0:03:48.5]} 20... Qa2+ {[%clk
0:02:44.9]} 21. Kc1 {[%clk 0:03:46.2]} 21... Nb4 {[%clk 0:02:38.1]} 22. Qxh7
{[%clk 0:03:44.5]} 22... Bxb3 {[%clk 0:02:28.6]} 23. Qxg6+ {[%clk 0:03:41.3]}
23... Kd8 {[%clk 0:02:26.4]} 24. cxb3 {[%clk 0:03:38]} 24... Qa1+ {[%clk
0:02:08.8]} 25. Qb1 {[%clk 0:03:34.9]} 25... Qa5 {[%clk 0:02:02.3]} 26. Nf7+
{[%clk 0:03:31.5]} 26... Ke8 {[%clk 0:01:58.6]} 27. e6 {[%clk 0:03:30.7]} 27...
Ne5 {[%clk 0:01:45.1]} 28. Bc4 {[%clk 0:03:28.3]} 28... Na2+ {[%clk 0:01:40]}
29. Kc2 {[%clk 0:03:24.5]} 29... Nb4+ {[%clk 0:01:38.1]} 30. Kc1 {[%clk
0:03:23.9]} 30... Na2+ {[%clk 0:01:37]} 31. Qxa2 {[%clk 0:03:22.6]} 31... Qxa2
{[%clk 0:01:35.1]} 32. Nxe5 {[%clk 0:03:22.5]} 32... Qa5 {[%clk 0:01:25.5]} 33.
f4 {[%clk 0:03:17.6]} 33... Qc5 {[%clk 0:01:22.4]} 34. Rhe1 {[%clk 0:03:14.1]}
34... Ra1+ {[%clk 0:01:17]} 35. Kc2 {[%clk 0:03:11.2]} 35... Rxd1 {[%clk
0:01:14.5]} 36. Rxd1 {[%clk 0:03:10.6]} 36... Qf2+ {[%clk 0:01:09.9]} 37. Rd2
{[%clk 0:03:09.5]} 37... Qxf4 {[%clk 0:01:08.3]} 38. Nf7 {[%clk 0:03:09.2]}
38... Qf5+ {[%clk 0:01:02.3]} 39. Kc1 {[%clk 0:03:07.7]} 39... Qf1+ {[%clk
0:00:57.3]} 40. Bxf1 {[%clk 0:03:06.1]} 1-0

[Event "Live Chess"]
[Site "Chess.com"]
[Date "2023.05.21"]
[Round "-"]
[White "Doge_Dandolo"]
[Black "Biranidun"]
[Result "0-1"]
[WhiteElo "1897"]
[BlackElo "2563"]
[TimeControl "300"]
[EndTime "23:47:51 PDT"]
[Termination "Biranidun won by resignation"]

1. Nf3 {[%clk 0:04:57.4]} 1... Nf6 {[%clk 0:04:59]} 2. c4 {[%clk 0:04:56.4]}
2... g6 {[%clk 0:04:58.3]} 3. Nc3 {[%clk 0:04:55.7]} 3... Bg7 {[%clk 0:04:58.2]}
4. e4 {[%clk 0:04:54.8]} 4... d6 {[%clk 0:04:57.8]} 5. d4 {[%clk 0:04:53]} 5...
O-O {[%clk 0:04:57.4]} 6. Be2 {[%clk 0:04:51.7]} 6... e5 {[%clk 0:04:56.3]} 7.
dxe5 {[%clk 0:04:49.5]} 7... dxe5 {[%clk 0:04:56.2]} 8. Qxd8 {[%clk 0:04:48.6]}
8... Rxd8 {[%clk 0:04:56.1]} 9. Bg5 {[%clk 0:04:47.5]} 9... c6 {[%clk
0:04:55.5]} 10. Nxe5 {[%clk 0:04:46]} 10... Re8 {[%clk 0:04:54.9]} 11. O-O-O
{[%clk 0:04:45.2]} 11... Na6 {[%clk 0:04:54.6]} 12. Nd3 {[%clk 0:04:39.7]} 12...
Nxe4 {[%clk 0:04:50.3]} 13. Nxe4 {[%clk 0:04:37]} 13... Rxe4 {[%clk 0:04:50.2]}
14. Bf3 {[%clk 0:04:32]} 14... Rxc4+ {[%clk 0:04:49.3]} 15. Kb1 {[%clk
0:04:30.6]} 15... Bf5 {[%clk 0:04:48.4]} 16. g4 {[%clk 0:04:26]} 16... Bxg4
{[%clk 0:04:45.9]} 17. Bxg4 {[%clk 0:04:24.9]} 17... Rxg4 {[%clk 0:04:45.8]} 18.
Be7 {[%clk 0:04:21.9]} 18... Re8 {[%clk 0:04:44.4]} 19. Ba3 {[%clk 0:04:16.6]}
19... Rd4 {[%clk 0:04:41]} 20. Kc2 {[%clk 0:04:10.3]} 20... Re2+ {[%clk
0:04:38.6]} 21. Kc3 {[%clk 0:04:09.4]} 21... Rb4+ {[%clk 0:04:33.9]} 0-1

[Event "Live Chess"]
[Site "Chess.com"]
[Date "2023.05.21"]
[Round "-"]
[White "CroasArRheun"]
[Black "rmethornhill"]
[Result "1-0"]
[WhiteElo "1826"]
[BlackElo "1182"]
[TimeControl "300"]
[EndTime "23:47:54 PDT"]
[Termination "CroasArRheun won by resignation"]

1. d4 {[%clk 0:04:58.9]} 1... Nf6 {[%clk 0:04:57.3]} 2. c4 {[%clk 0:04:58]} 2...
e6 {[%clk 0:04:56.4]} 3. Nc3 {[%clk 0:04:57.2]} 3... Bb4 {[%clk 0:04:55.3]} 4.
e3 {[%clk 0:04:55.9]} 4... d5 {[%clk 0:04:53.8]} 5. Bd2 {[%clk 0:04:55.1]} 5...
dxc4 {[%clk 0:04:51.8]} 6. Bxc4 {[%clk 0:04:53.7]} 6... O-O {[%clk 0:04:47.8]}
7. a3 {[%clk 0:04:52.4]} 7... Bxc3 {[%clk 0:04:46.2]} 8. Bxc3 {[%clk 0:04:51.4]}
8... Ne4 {[%clk 0:04:38.4]} 9. Bb4 {[%clk 0:04:50.4]} 9... Re8 {[%clk
0:04:33.3]} 10. Qc2 {[%clk 0:04:49.4]} 10... Nd6 {[%clk 0:04:25.9]} 11. Bd3
{[%clk 0:04:44.3]} 11... h6 {[%clk 0:04:24.2]} 12. Nf3 {[%clk 0:04:42.1]} 12...
Nc6 {[%clk 0:04:21.8]} 13. Bc3 {[%clk 0:04:35.3]} 13... a6 {[%clk 0:04:16.9]}
14. O-O {[%clk 0:04:34.3]} 14... Nb5 {[%clk 0:04:15.4]} 15. Bd2 {[%clk
0:04:26.4]} 15... Bd7 {[%clk 0:03:57.4]} 16. Rac1 {[%clk 0:04:17.2]} 16... Nd6
{[%clk 0:03:51.9]} 17. Rfe1 {[%clk 0:04:11.8]} 17... Ne7 {[%clk 0:03:43.4]} 18.
Qxc7 {[%clk 0:04:09.6]} 18... Qxc7 {[%clk 0:03:31.5]} 19. Rxc7 {[%clk
0:04:09.5]} 19... Bc6 {[%clk 0:03:26.1]} 20. Bb4 {[%clk 0:04:03.8]} 20... Rad8
{[%clk 0:03:19.2]} 21. e4 {[%clk 0:03:45.1]} 21... Rd7 {[%clk 0:02:45.2]} 22.
Rxd7 {[%clk 0:03:41.1]} 1-0

[Event "Live Chess"]
[Site "Chess.com"]
[Date "2023.05.21"]
[Round "-"]
[White "Ian-Morley"]
[Black "mirandaasilva"]
[Result "0-1"]
[WhiteElo "1004"]
[BlackElo "1630"]
[TimeControl "300"]
[EndTime "23:47:56 PDT"]
[Termination "mirandaasilva won by resignation"]

1. e4 {[%clk 0:04:58.2]} 1... c6 {[%clk 0:04:58.1]} 2. d4 {[%clk 0:04:57.1]}
2... d5 {[%clk 0:04:58]} 3. f3 {[%clk 0:04:56.5]} 3... dxe4 {[%clk 0:04:56]} 4.
fxe4 {[%clk 0:04:55.7]} 4... e5 {[%clk 0:04:55.9]} 5. Ne2 {[%clk 0:04:54.9]}
5... Qh4+ {[%clk 0:04:54.4]} 6. g3 {[%clk 0:04:52.3]} 6... Qxe4 {[%clk
0:04:53.1]} 7. dxe5 {[%clk 0:04:51.7]} 7... Qxh1 {[%clk 0:04:44.5]} 8. Bf4
{[%clk 0:04:48]} 8... Bh3 {[%clk 0:04:42.8]} 9. Kd2 {[%clk 0:04:43.9]} 9... Qxf1
{[%clk 0:04:40.5]} 10. Qxf1 {[%clk 0:04:43]} 10... Bxf1 {[%clk 0:04:40.4]} 11.
Nec3 {[%clk 0:04:41.2]} 11... Na6 {[%clk 0:04:34.6]} 12. Na3 {[%clk 0:04:40.1]}
12... O-O-O+ {[%clk 0:04:33.3]} 13. Ke3 {[%clk 0:04:37.4]} 13... Bc5+ {[%clk
0:04:16.6]} 14. Kf3 {[%clk 0:04:35.3]} 14... Bh3 {[%clk 0:04:15.9]} 15. Ne4
{[%clk 0:04:33.5]} 15... Bxa3 {[%clk 0:04:13.5]} 16. bxa3 {[%clk 0:04:31.6]}
16... Be6 {[%clk 0:03:50.5]} 17. Nd6+ {[%clk 0:04:29.4]} 17... Kb8 {[%clk
0:03:49.7]} 18. Nxf7 {[%clk 0:04:23.7]} 18... Bxf7 {[%clk 0:03:48.1]} 19. e6+
{[%clk 0:04:23]} 19... Kc8 {[%clk 0:03:44.4]} 20. exf7 {[%clk 0:04:21.9]} 20...
Nf6 {[%clk 0:03:43.3]} 21. Re1 {[%clk 0:04:18.8]} 21... Rhf8 {[%clk 0:03:42.2]}
22. Re8 {[%clk 0:04:16.1]} 22... Nxe8 {[%clk 0:03:39.3]} 23. fxe8=Q {[%clk
0:04:14.6]} 23... Rdxe8 {[%clk 0:03:38.1]} 0-1